Cogmind - Beta 16 @@@ ROGUE MODE // 2026.01.20 @ 13:01:10 Player: Tubby Watkins Result: Destroyed by EX-DEC with AWS/EX-DEC Performance ------------- Evolutions (1) 500 Regions Visited (5) 1000 Robots Destroyed (76) 380 Value Destroyed (1894) 1894 Prototype IDs (3) 60 Alien Tech Used (0) 0 Bonus (13) 13 TOTAL SCORE: 3847 Bonus ------- Follower Combat Kills 35 Friendly Fire -22 Cogmind --------- Core Integrity 0/400 Matter 225/300 Energy 100/100 System Corruption 7% Temperature Cool (0) Movement Core (350) Ox6 Location -9/Exiles Parts ------- > --- POWER (1) -------- (None) > --- PROPULSION (3) --- (None) > --- UTILITY (3) ------ Large Storage Unit > --- WEAPON (2) ------- (None) > --- INVENTORY (15) --- Light Nuclear Core Light Treads Light Treads Light Treads Flight Unit Flight Unit Faulty Improved VTOL Module Improved VTOL Module Improved VTOL Module Improved VTOL Module High-capacity Matter Pod (73) ECM Suite Assault Rifle Light Assault Rifle Autogun Peak State ------------ > --- POWER ------------ Light Nuclear Core > --- PROPULSION ------- Light Treads Light Treads Light Treads > --- UTILITY ---------- Large Storage Unit Experimental Sensor Array Propulsion Shielding > --- WEAPON ----------- Light Cannon Light Cannon > --- INVENTORY -------- Light Nuclear Core Light Treads Flight Unit Small Storage Unit Structural Scanner Light Armor Plating Assault Rifle Light Assault Rifle Shotgun Shotgun Shotgun Shotgun Mini Grenade Launcher [Rating: 21] Favorites ----------- Power Light Nuclear Core Engine Heavy Ion Engine Power Core Light Nuclear Core Propulsion Light Treads Treads Light Treads Leg Aluminum Leg Utility Large Storage Unit Device Structural Scanner Storage Large Storage Unit Protection Light Armor Plating Weapon Light Cannon Energy Gun EM Pulse Gun Ballistic Gun Autogun Ballistic Cannon Light Cannon Launcher Mini Grenade Launcher Build | -11 -10 -10 -9 -9 -9 ------- Run | Yrd Mat Min Mat Min Exi Slots Evolved 2 | . . . 2 . . Power . | . . . . . . Propulsion 1 | . . . 1 . . Utility 1 | . . . 1 . . Weapon . | . . . . . . Parts Attached 44 | 7 10 3 22 2 . Power 4 | 1 2 . 1 . . Engine 3 | 1 1 . 1 . . Core 1 | . 1 . . . . Reactor . | . . . . . . Propulsion 18 | 2 2 1 12 1 . Treads 16 | . 2 1 12 1 . Leg 2 | 2 . . . . . Wheel . | . . . . . . Hover . | . . . . . . Flight . | . . . . . . Utility 10 | 2 2 1 5 . . Device 3 | 1 1 1 . . . Storage 3 | 1 1 . 1 . . Processor . | . . . . . . Hackware . | . . . . . . Protection 4 | . . . 4 . . Artifact . | . . . . . . Weapon 12 | 2 4 1 4 1 . Energy Gun 1 | 1 . . . . . Energy Cannon . | . . . . . . Ballistic Gun 6 | 1 2 . 2 1 . Ballistic Cannon 4 | . 2 . 2 . . Launcher 1 | . . 1 . . . Special Weapon . | . . . . . . Impact Weapon . | . . . . . . Slashing Weapon . | . . . . . . Piercing Weapon . | . . . . . . Special Melee Weapon . | . . . . . . Unidentified Prototypes 1 | . . 1 . . . Parts Lost 11 | . . . 3 . 8 Power 1 | . . . . . 1 Propulsion 3 | . . . . . 3 Utility 5 | . . . 3 . 2 Weapon 2 | . . . . . 2 Highest Loss Streak 8 | . . . 1 . 8 To Critical Strikes . | . . . . . . Average Backups 12 | 3 7 12 14 14 15 Power 1 | . 1 1 1 1 1 Propulsion 4 | 1 1 1 5 8 9 Utility 1 | . . 2 2 2 2 Weapon 4 | . 3 7 5 3 3 Tool/Special . | . . . . . . Unused Backups 19 | . 5 . 3 . 11 Power 3 | . 2 . . . 1 Propulsion 8 | . 2 . . . 6 Utility 2 | . . . . . 2 Weapon 6 | . 1 . 3 . 2 Tool/Special . | . . . . . . Average Slot Usage (%) 99 | . 99 100 98 99 99 Engine 4 | . 2 . 2 11 11 Core 8 | . 11 14 8 . . Treads 29 | . 21 28 32 33 32 Leg 1 | . 6 . . . . Device 12 | . 14 14 11 11 11 Storage 12 | . 14 14 11 11 11 Protection 6 | . . . 9 11 10 Ballistic Gun 9 | . 22 . 5 16 10 Ballistic Cannon 11 | . 3 27 16 . . Launcher 1 | . . . . 5 10 Peak Build Rating 21 | 7 12 19 21 17 17 Average Rating 14 | 5 11 15 15 16 16 On Entrance 11 | . 7 10 19 17 17 Avg Prop Armor Cover (%) 17 | . 17 . . . . Naked Turns . | . . . . . . Heaviest Build 39 | 14 32 32 39 38 36 Greatest Support 63 | 20 40 40 63 63 63 Greatest Overweight (x) 9 | 4 4 . . . 9 Average Overweight (x) . | . . . . . . Largest Inventory Capacity 15 | 8 15 15 15 15 15 Average Capacity 13 | 7 10 15 15 15 15 Most Carried 15 | 5 11 15 15 15 15 Average Carried 12 | 3 7 12 14 14 15 Final Capacity 15 | 8 15 15 15 15 15 Final Carried 15 | 5 11 15 15 15 15 Class Distribution -------------------- 86% | Mutant 13% | Scavenger-Mutant Dominant Class ---------------- Mutant | -10/Materials Mutant | -10/Mines Mutant | -9/Materials Mutant | -9/Mines Mutant | -9/Exiles Resources | -11 -10 -10 -9 -9 -9 ----------- Run | Yrd Mat Min Mat Min Exi Matter Collected 1962 | 283 209 124 994 352 . Remotely . | . . . . . . Salvage Created 1989 | 157 210 98 1187 310 27 Parts 160 | 9 15 14 86 33 3 Haulers Intercepted 3 | . . . 3 . . Recyclers Shooed . | . . . . . . Parts Field Recycled . | . . . . . . Retrieved Matter . | . . . . . . Parts Self-Destructed . | . . . . . . Prevented . | . . . . . . Parts Restored . | . . . . . . Kills | -11 -10 -10 -9 -9 -9 ------- Run | Yrd Mat Min Mat Min Exi Combat Hostiles Destroyed 57 | . 6 6 30 15 . Guns 13 | . 5 . 4 4 . Cannons 27 | . 1 . 26 . . AOE 17 | . . 6 . 11 . Classes Destroyed 12 | 2 2 1 4 2 1 Worker 2 | . . . 1 1 . Tunneler 4 | 4 . . . . . Hauler 3 | . . . 3 . . Recycler 3 | 1 . 1 1 . . Watcher 6 | . 1 . 5 . . Swarmer 17 | . . 6 3 8 . Grunt 26 | . 6 . 16 4 . Brawler 3 | . . . 2 1 . Duelist 1 | . . . . 1 . Protector 1 | . . . . 1 . Sentry 9 | . . . 9 . . Zionite 1 | . . . . . 1 Best Kill Streak 5 | 2 2 4 5 5 1 Combat Bots Only 4 | . 2 3 4 4 . Max Kills in Single Turn 4 | 1 1 4 2 3 1 Gunslinging . | . . . . . . Exploded 3 | . . 3 . 3 . Melee . | . . . . . . Uniques/NPCs Destroyed . | . . . . . . Combat | -11 -10 -10 -9 -9 -9 -------- Run | Yrd Mat Min Mat Min Exi Hostile Shots Fired 263 | . 18 7 120 41 77 Missed 73 | . 6 2 36 14 15 Hits 190 | . 12 5 84 27 62 Melee 9 | . . . 1 5 3 Projectile 181 | . 12 5 83 22 59 Critical Strikes 9 | . . . 4 3 2 Actively Blocked 1 | . . . 1 . . Part Disruptions 1 | . . . . . 1 Damage Taken 2634 | 34 147 38 1076 498 841 Core 468 | . 52 14 68 27 307 Absorbed by Shields . | . . . . . . Redirected to Shielding 51 | . . . 51 . . Core Remaining (%) 86 | 100 . 73 . . . Volleys Fired 157 | 13 20 3 90 30 1 Largest 2 | 2 2 2 2 2 1 Hottest 66 | 60 60 60 66 53 23 Shots Fired 306 | 26 40 4 183 50 3 Gun 154 | 26 36 . 46 43 3 Cannon 142 | . 4 1 137 . . Launcher 10 | . . 3 . 7 . Special . | . . . . . . Kinetic 280 | 13 37 1 183 43 3 Thermal . | . . . . . . Explosive 10 | . . 3 . 7 . Electromagnetic 16 | 13 3 . . . . Robot Hit Streak 16 | 10 10 3 16 12 2 Robot Miss Streak 5 | 2 5 1 3 5 1 Penetration Max . | . . . . . . Secondary Targets 1 | . . . . 1 . Max Gunslinging Chain 1 | . . . . 1 . Shots Hit Robots 206 | 17 28 3 126 30 2 Core Hits 99 | 6 14 7 50 21 1 Critical Kills . | . . . . . . Critical Parts Destroyed . | . . . . . . Critical Strikes 7 | . . . 7 . . Blast 7 | . . . 7 . . Melee Attacks . | . . . . . . Impact . | . . . . . . Slashing . | . . . . . . Piercing . | . . . . . . Sneak Attacks . | . . . . . . Combat Hostiles . | . . . . . . Follow-up Attacks . | . . . . . . Damage Inflicted 4426 | 211 407 326 2271 1184 27 Guns 1501 | 179 354 . 478 463 27 Cannons 1846 | . 53 . 1793 . . Explosions 1079 | 32 . 326 . 721 . Melee . | . . . . . . Ramming . | . . . . . . Kinetic 3224 | 56 407 . 2271 463 27 Thermal 32 | 32 . . . . . Explosive 1047 | . . 326 . 721 . Electromagnetic 123 | 123 . . . . . Impact . | . . . . . . Slashing . | . . . . . . Piercing . | . . . . . . Highest Corruption 7 | . . . 3 3 7 Average Corruption 3 | . . . 3 3 3 Corruption Purged . | . . . . . . Corruption Blocked . | . . . . . . Effects 60 | . . . 42 7 11 Message Errors 8 | . . . 8 . . Matter Fused 12 | . . . 6 2 4 Heat Flow Errors 7 | . . . 6 1 . Energy Discharges 7 | . . . 6 . 1 Parts Rejected 2 | . . . 2 . . Parts Fused 1 | . . . . . 1 Data Loss (minor) 6 | . . . 4 . 2 Data Loss (major) 4 | . . . 3 . 1 Misfires 7 | . . . 5 . 2 Alerts 2 | . . . . 2 . Weapon Failures 4 | . . . 2 2 . Overload Shots . | . . . . . . Overflow Damage 10 | . . . . 10 . Projectiles . | . . . . . . Explosions 10 | . . . . 10 . Melee . | . . . . . . Knockbacks 13 | . . . 13 . . Impact . | . . . . . . Kinetic 12 | . . . 12 . . Secondary 1 | . . . 1 . . Self-Inflicted Damage 125 | 34 . . . 91 . Shots 3 | 1 . . . 2 . Rammed 1 | . 1 . . . . Targets Rammed 1 | . 1 . . . . Kicked . | . . . . . . Crushed . | . . . . . . Highest Temperature 281 | 40 40 . 281 224 4 Average Temperature 43 | 19 23 . 46 47 4 Received Heat Transfer 769 | . 84 . 462 123 100 Siege Activations . | . . . . . . Martial Activations . | . . . . . . Shielding Activations . | . . . . . . Robots Disrupted . | . . . . . . Combat Hostiles . | . . . . . . Robots Corrupted . | . . . . . . Combat Hostiles . | . . . . . . Parts Fried . | . . . . . . Impact Corruptions . | . . . . . . Robots Melted . | . . . . . . Combat Hostiles . | . . . . . . Parts Melted 1 | . . . . 1 . Heat Transferred 50 | 50 . . . . . Parts Sabotaged . | . . . . . . Parts Stolen . | . . . . . . Parts Stripped . | . . . . . . Power Chain Reactions 1 | 1 . . . . . Alert | -11 -10 -10 -9 -9 -9 ------- Run | Yrd Mat Min Mat Min Exi Maximum Alert Level 1 | . . . 1 1 . Low Security (%) 77 | 100 100 100 58 67 . Level 1 22 | . . . 41 32 . Level 2 . | . . . . . . Level 3 . | . . . . . . Level 4 . | . . . . . . Level 5 . | . . . . . . High Security . | . . . . . . Max Security . | . . . . . . Peak Influence 334 | 5 83 162 334 303 . Initial 118 | . . 1 . 118 . Average 96 | 1 17 35 148 172 . Influence Increases 1726 | 25 212 182 912 395 . Destroy 0b10 Robot/C 1140 | . 120 120 600 300 . Destroy 0b10 Robot/NC 95 | 25 5 5 50 10 . Destroy Leader 298 | . 42 20 196 40 . Allied During Kill 5 | . . . . 5 . Successful Hack 12 | . . . 12 . . Disable Machine 45 | . . 15 30 . . Destroy Structure 71 | . . 22 9 40 . Partial Spotted 15 | . . . 15 . . Lose Combat Pursuer 45 | . 45 . . . . Influence Decreases 1726 | 25 206 188 608 444 255 Entered New Map 446 | . . 5 . 186 255 Time Decay 1230 | 25 206 183 578 238 . Lost Part 30 | . . . 30 . . Lost Ally 20 | . . . . 20 . Squads Dispatched 9 | . 4 . 4 1 . Investigation 2 | . 2 . . . . Extermination . | . . . . . . Reinforcement 6 | . 2 . 4 . . Assault 1 | . . . . 1 . Garrison . | . . . . . . Intercept . | . . . . . . Searches Triggered . | . . . . . . Construction Impeded . | . . . . . . Haulers Reinforced . | . . . . . . Active Scanning Responses . | . . . . . . Cargo Convoy Interrupts . | . . . . . . Stealth | -11 -10 -10 -9 -9 -9 --------- Run | Yrd Mat Min Mat Min Exi Distress Signals 3 | . 2 . 1 . . Communications Jammed . | . . . . . . Distress Signals . | . . . . . . Times Spotted 99 | . 19 6 41 17 16 Peak Tracking Total 17 | . 4 3 4 5 17 Tactical Retreats 3 | . 2 . . . 1 Traps | -11 -10 -10 -9 -9 -9 ------- Run | Yrd Mat Min Mat Min Exi Traps Triggered 2 | . 2 . . . . Indirectly . | . . . . . . Trap Hack Attempts . | . . . . . . Triggered . | . . . . . . Disarmed . | . . . . . . Reprogrammed . | . . . . . . Reused . | . . . . . . Traps Extracted . | . . . . . . Installed . | . . . . . . Triggered . | . . . . . . Machines | -11 -10 -10 -9 -9 -9 ---------- Run | Yrd Mat Min Mat Min Exi Machines Disabled 4 | . . 1 2 . 1 Max in Single Turn 1 | . . 1 1 . 1 Machines Repaired . | . . . . . . Machines Dismantled . | . . . . . . Machines Sabotaged . | . . . . . . Overloaded Fab Kills . | . . . . . . Hacking | -11 -10 -10 -9 -9 -9 --------- Run | Yrd Mat Min Mat Min Exi Machines Accessed 11 | . 2 . 6 . 3 Terminals 8 | . 2 . 6 . . Fabricators . | . . . . . . Repair Stations . | . . . . . . Recycling Units . | . . . . . . Scanalyzers . | . . . . . . Garrison Access . | . . . . . . Total Hacks 42 | . 6 . 10 . 26 Successful 32 | . 1 . 5 . 26 Failed 10 | . 5 . 5 . . Catastrophic 1 | . . . 1 . . Database Lockouts . | . . . . . . Manual 7 | . 1 . 6 . . Terminals 16 | . 6 . 10 . . Fabricators . | . . . . . . Repair Stations . | . . . . . . Recycling Units . | . . . . . . Scanalyzers . | . . . . . . Garrison Access . | . . . . . . Terminal Hacks 32 | . 1 . 5 . 26 Record 28 | . . . 2 . 26 Robot Analysis 1 | . . . 1 . . Prototype ID Bank 1 | . 1 . . . . Locate Traps 1 | . . . 1 . . Hauler Manifests 1 | . . . 1 . . Fabricator Hacks . | . . . . . . Repair Station Hacks . | . . . . . . Recycling Unit Hacks . | . . . . . . Scanalyzer . | . . . . . . Garrison Access Hacks . | . . . . . . Unauthorized Hacks . | . . . . . . Terminals . | . . . . . . Fabricators . | . . . . . . Repair Stations . | . . . . . . Recycling Units . | . . . . . . Scanalyzers . | . . . . . . Garrison Access . | . . . . . . Data Cores Recovered . | . . . . . . Used . | . . . . . . Hacking Detections 3 | . 1 . 2 . . Full Trace Events 1 | . 1 . . . . Feedback Events . | . . . . . . Feedback Blocked . | . . . . . . Robot Schematics Acquired . | . . . . . . Robots Built . | . . . . . . Authchips . | . . . . . . Time . | . . . . . . Total Robot Build Rating . | . . . . . . Part Schematics Acquired . | . . . . . . Parts Built . | . . . . . . Authchips . | . . . . . . Time . | . . . . . . Total Part Build Rating . | . . . . . . Part Studies Acquired . | . . . . . . Parts Repaired . | . . . . . . Time . | . . . . . . Parts Recycled . | . . . . . . Recycled Matter . | . . . . . . Retrieved Matter . | . . . . . . Retrieved Components . | . . . . . . Parts Scanalyzed . | . . . . . . Part Schematics Acquired . | . . . . . . Parts Damaged . | . . . . . . Bothacking | -11 -10 -10 -9 -9 -9 ------------ Run | Yrd Mat Min Mat Min Exi Used RIF Installer . | . . . . . . Robots Hacked . | . . . . . . Non-combat . | . . . . . . Combat . | . . . . . . Robot Hacks Applied . | . . . . . . Relay Couplers Released . | . . . . . . Fabnet Peak Effective % . | . . . . . . Robots Rewired . | . . . . . . Allies Hacked . | . . . . . . Hacks Repelled . | . . . . . . Allies | -11 -10 -10 -9 -9 -9 -------- Run | Yrd Mat Min Mat Min Exi Total Allies 1 | . . . . 1 . Largest Group 1 | . . . . 1 . Highest-Rated Group 31 | . . . . 31 . Highest-Rated Ally 31 | . . . . 31 . Total Orders . | . . . . . . Ally Attacks 23 | . . . . 23 . Total Damage 320 | . . . . 320 . Kills 1 | . . . . 1 . Allies Corrupted . | . . . . . . Allies Melted . | . . . . . . Intel | -11 -10 -10 -9 -9 -9 ------- Run | Yrd Mat Min Mat Min Exi Active Infowar (turns) 5919 | 16 1241 900 2478 515 769 Sensors 650 | . . 509 141 . . Structural 4413 | . 401 391 2337 515 769 Seismic 856 | 16 840 . . . . Robot Analysis Total 1 | . . . 1 . . Derelict Logs Recovered 3 | . . 2 . 1 . Drone Launches . | . . . . . . Drone Recoveries . | . . . . . . Exploration | -11 -10 -10 -9 -9 -9 ------------- Run | Yrd Mat Min Mat Min Exi Turns Passed 6086 | 171 1241 900 2483 515 776 Spaces Moved 3288 | 93 648 547 1251 269 480 Core 39 | 11 27 . . . 1 Treads 3035 | . 489 547 1251 269 479 Legs 214 | 82 132 . . . . Wheels . | . . . . . . Hover . | . . . . . . Flight . | . . . . . . Fastest Speed 50 | 50 120 160 160 160 160 Average Speed 158 | 129 155 160 160 160 161 Slowest Speed 500 | 250 250 160 160 160 500 Overloaded Moves . | . . . . . . Propulsion Burnouts . | . . . . . . Robots Hopped . | . . . . . . Potential Cave-ins . | . . . . . . Cave-ins Triggered . | . . . . . . Exploration Rate (%) 70 | 7 82 93 98 60 85 Regions Visited 5 Branch Regions 3 Pre-discovered Areas . | . . . . . . Known Exits Taken . | . . . . . . Unknown Exits Taken 5 | 1 1 1 1 1 . Scrap Searched 1 | . . 1 . . . Spaces Dug 17 | . . . . 17 . Terrain Destroyed 103 | 2 . 23 1 77 . Melee . | . . . . . . Projectile 1 | . . . 1 . . AOE 102 | 2 . 23 . 77 . Terrain Rammed . | . . . . . . Walls Destroyed . | . . . . . . Machines Disabled . | . . . . . . Actions | -11 -10 -10 -9 -9 -9 --------- Run | Yrd Mat Min Mat Min Exi Total 3884 | 117 838 567 1570 310 482 Wait 320 | . 140 7 170 3 . Move 3283 | 92 647 546 1250 268 480 Hop . | . . . . . . Pick Up 33 | 5 11 4 12 1 . Fast Attach 11 | 7 1 . 2 1 . Attach 6 | . . . 5 1 . Detach . | . . . . . . Swap 39 | . 10 6 19 4 . Drop 33 | . 8 1 22 2 . Fire 157 | 13 20 3 90 30 1 Melee . | . . . . . . Ram . | . . . . . . Kick . | . . . . . . Crush 1 | . 1 . . . . Escape Stasis . | . . . . . . Rewire 1 | . . . . . 1 Trap . | . . . . . . Miscellaneous . | . . . . . . Route ------- -11/Scrapyard -10/Materials (discovered 3 exits: *Mat x2 / [*Min]) -10/Mines (discovered 2 exits: *Mat x2) -9/Materials (discovered 5 exits: [*Mat x3] / [*Min] / [*Sto]) -9/Mines (discovered 2 exits: *Exi / [*Zio]) -9/Exiles (discovered 2 exits: [*Min x2]) History --------- Turn | Location | Event 35 | -11/Scrapyard | Discovered new exit (range 15) 172 | -11/Scrapyard | Entered Materials 173 | -10/Materials | Met a group of wandering Federalists 335 | -10/Materials | Build established: Mutant 398 | -10/Materials | Lost 3 allies 523 | -10/Materials | Discovered new exit (range 13) 795 | -10/Materials | Discovered new exit (range 6) 1110 | -10/Materials | Discovered new exit (range 7) 1413 | -10/Materials | Entered Mines 1440 | -10/Mines | Met a Derelict bent on vengeance 1657 | -10/Mines | Discovered new exit (range 12) 1745 | -10/Mines | Learned Materials trap positions 1780 | -10/Mines | Discovered new exit (range 10) 1795 | -10/Mines | Found a damaged Exp. Sensor Array with a note attached 1801 | -10/Mines | Found Prototype Device 1804 | -10/Mines | Identified Exp. Sensor Array 1911 | -10/Mines | Learned Materials stockpile data 2269 | -10/Mines | Joined a pair of Derelicts in attacking an 0b10 outpost 2313 | -10/Mines | Entered Materials 2313 | -9/Materials | Evolved 2 slots: Propulsion x1, Utility x1 2314 | -9/Materials | Loaded intel: 11 trap records 2970 | -9/Materials | Discovered new exit (range 3) 3463 | -9/Materials | Discovered new exit (range 10) 4134 | -9/Materials | Build established: Scavenger-Mutant 4391 | -9/Materials | Discovered new exit (range 15) 4529 | -9/Materials | Discovered new exit (range 16) 4635 | -9/Materials | Discovered new exit (range 9) 4796 | -9/Materials | Entered Mines 4797 | -9/Mines | Met a Derelict testing a Signal Generator 4822 | -9/Mines | Learned location of 1 exit from Materials 4952 | -9/Mines | Build established: Mutant 4967 | -9/Mines | Found a hidden stash of uninstalled traps 5213 | -9/Mines | A Derelict revealed a hidden shortcut to a safe place 5303 | -9/Mines | Deemed a non-threat by the Exiles lab entrance 5303 | -9/Mines | Discovered new exit (range 6) 5311 | -9/Mines | Entered Exiles 5334 | -9/Exiles | Discovered new exit (range 15) 5353 | -9/Exiles | Met 8R-AWN 5390 | -9/Exiles | Met EX-HEX 5519 | -9/Exiles | Met EX-BIN 5744 | -9/Exiles | Met EX-DEC 5847 | -9/Exiles | Discovered new exit (range 12) 5998 | -9/Exiles | Visited The Gauntlet 6044 | -9/Exiles | Attacked by the Exiles 6077 | -9/Exiles | Core integrity fell below 50% 6086 | -9/Exiles | Core integrity fell below 20% 6087 | -9/Exiles | Destroyed by EX-DEC with AWS/EX-DEC Last Messages --------------- 06043_ System corrupted: FCS attempts to trigger Autogun. 06043_ System corrupted: Autogun misfires. 06043_ Machine disabled. 06044_ EXILES: Hostile robot within lab perimeter. Defensive protocols time, folks! 06053_ Mni. Grenade Launcher destroyed. 06060_ W1-DM0 destroyed. 06067_ Machine disabled. 06070_ System corrupted: FCS attempts to trigger Autogun. 06070_ System corrupted: Autogun misfires. 06070_ Lgt. Treads destroyed. 06071_ Machine disabled. 06075_ Lgt. Armor Plating destroyed. 06077_ as-00057 destroyed. 06079_ EX-BIN: "I just want to science!" 06079_ Autogun destroyed. 06080_ Structural Scanner destroyed. 06081_ Imp. Treads destroyed. 06082_ Lgt. Treads destroyed. 06083_ Hvy. Ion Engine destroyed. Map ----- +----------------------------------------------------+ | ?????????????###" ?????? "" | | ??????????????##"""" "????????"" " " | | ??????????????##"" ""?????????###""" | | ??????????????##" """"??????????#####" | | ??????????????##""" """#??????????##### | | ??????????????### ""##????????????### | | ??????????????###"" """###??????????????? | | ???????????????###""" ###???????????????? | | ???????????????####"""" ####???????????????? | | ????????????????##### ###????????????????? | | ?????????????????######## ###?????????????????? | | ???????????????????####### ###?????????????????? | | ???????????????????????### ##??????????????????? | | ????????????????????????## z ##??????????????????? | | ???????????????#####????## z ##??????????????????? | | ?????????????#######????##z ##??????????????????? | | ??????"""""??##"""""""####z ##??????????????????? | | ?????""""""??##"""""""#### ##??????????????????? | | ????""""" "??##" """"#### ##??????????????????? | | #""?""" """??##"" """#### ##??????????????????? | | #""#"" ""####"" ""#### #########???????????? | | #""###"""########"""###### #########???????????? | | """""" """""""" """"""aca"""""""#"???????????? | | """"" """""" ca "#""??????????? | | *%[ %a " ?????????? | | ! a@ c " "?????????? | | a " "?????????? | | " " #""??????????? | | """" """"" " """" """""#"???????????? | | ######"""###""###"""########"""#######???????????? | | ####"" ""#""#"" ""####"" ""#####???????????? | | ??##""" ""#""#""" ""##???? """##??????????????? | | ??##" """"""""#" " "##????"""""##??????????????? | | ??##"""""""??"#"""""""##???? """"##??????????????? | | ????"""""""????"""""""##??????""?????????????????? | | ????????????????########?????????????????????????? | | ????????????????######???????????????????????????? | | ?????????????????????????????????????????????????? | | ?????????????????????????????????????????????????? | | ?????????????????????????????????????????????????? | | | | | | | | | | | | | | | | | | | | | +----------------------------------------------------+ Best States ------------- Heat Dissipation 28 Energy Generation 14 Energy Capacity 280 Matter Stores 300 Matter Capacity 300 Sight Range 16 Robot Scan Range 20 Terrain Scan Density 10 Armor Coverage 150 Propulsion Shielding 33 Evasion (%) 55 Recoil Reduction 3 Item Schematics ----------------- None Robot Schematics ------------------ None Fabricated ------------ Nothing Repaired ---------- Nothing Studied --------- None Alien Tech Used ----------------- None Achievements -------------- That Tickles Challenges ------------ None Game ------ Seed RelayThermicAxe Manual? 0 Play Time 01:02:10 Cumulative 9.5 hours Start 2026.01.20 @ 11:52:31 End 2026.01.20 @ 13:01:10 Sessions 5 Manual Loads 0 Difficulty Rogue Special Mode None Game No. 15 Rogue 15 Adventurer 0 Explorer 0 Win Type - Total 0 Types 0/0/0/0/0/0/0/0/0/0 Lore% 9 Gallery% 11 Achievement% 11 Wizard Run 0 Options --------- Layout 0 ASCII 1 Keyboard 1 Movement Vi Keybinds 0 Fullscreen 1 Font 20/X11 Map View 66x50 Zoom Use 0% Tactical HUD 1 Map Filters NONE Filters NONE Steam 1 RUN: e08f21b2-55fe-4845-bc42-13d594f302d9